[Event "29. Klatovy A 2023"]
[Site "Klatovy"]
[Date "2023.07.01"]
[Round "1.10"]
[White "Formanek, Martin"]
[Black "Stary, Lukas"]
[Result "1-0"]
[ECO "B23"]
[WhiteElo "2206"]
[BlackElo "1921"]
[PlyCount "108"]
[EventDate "2023.07.01"]
[EventType "swiss"]
[EventRounds "9"]
[EventCountry "CZE"]
[TimeControl "120+30"]

1. e4 {[%emt 0:00:03]} c5 {[%emt 0:00:22]} 2. Nc3 {[%emt 0:00:24]} Nc6 {[%emt 0:00:09]} 3. f4 {[%emt 0:00:08]} d6 {[%emt 0:00:33]} 4. Nf3 {[%emt 0:00:22]} g6 {[%emt 0:00:44]} 5. Bb5 {[%emt 0:01:15]} Bg7 {[%emt 0:02:18]} 6. O-O {[%emt 0:01:14]} e6 {[%emt 0:00:46]} 7. Bxc6+ {[%emt 0:02:11]} bxc6 {[%emt 0:00:12]} 8. d3 {[%emt 0:00:32]} Rb8 {[%emt 0:04:06]} 9. Qe1 {[%emt 0:03:28]} Ne7 {[%emt 0:03:47]} 10. b3 {[%emt 0:01:45]} O-O {[%emt 0:01:40]} 11. Ba3 {[%emt 0:05:26]} Qa5 {[%emt 0:01:11]} 12. Na4 {[%emt 0:00:26]} Rb4 {[%emt 0:23:27]} 13. Bxb4 {[%emt 0:03:38]} cxb4 {[%emt 0:02:15]} 14. e5 {[%emt 0:14:24]} c5 {[%emt 0:14:58]} 15. exd6 {[%emt 0:05:32]} Nf5 {[%emt 0:00:44]} 16. Ne5 {[%emt 0:00:17]} Nxd6 {[%emt 0:00:49]} 17. Qf2 {[%emt 0:03:45]} Nb7 {[%emt 0:09:51]} 18. Kh1 {[%emt 0:04:57]} Qc7 {[%emt 0:08:16]} 19. Rae1 {[%emt 0:09:54]} Rd8 {[%emt 0:03:15]} 20. Nb2 {[%emt 0:08:44]} Nd6 {[%emt 0:01:46]} 21. Nbc4 {[%emt 0:00:14]} Nb5 {[%emt 0:00:49]} 22. Nd2 {[%emt 0:06:37]} Bb7 {[%emt 0:15:42]} 23. Ne4 {[%emt 0:02:25]} Bxe4 {[%emt 0:01:23]} 24. Rxe4 {[%emt 0:00:16]} Rd5 {[%emt 0:07:51]} 25. Nc4 {[%emt 0:01:31]} Nc3 {[%emt 0:00:58]} 26. Re5 {[%emt 0:05:00]} Bxe5 {[%emt 0:01:12]} 27. fxe5 {[%emt 0:00:11]} Nxa2 {[%emt 0:00:31]} 28. Nd6 {[%emt 0:03:53]} Qe7 {[%emt 0:06:36]} 29. Nxf7 {[%emt 0:01:34]} Nc3 {[%emt 0:11:45]} 30. Qe3 {[%emt 0:05:47]} Nb5 {[%emt 0:02:14]} 31. Nh6+ {[%emt 0:00:54]} Kg7 {[%emt 0:01:26]} 32. Rf7+ {[%emt 0:00:26]} Qxf7 {[%emt 0:00:02]} 33. Nxf7 {[%emt 0:00:07]} Kxf7 {[%emt 0:00:03]} 34. Qf4+ {[%emt 0:00:32]} Kg8 {[%emt 0:00:08]} 35. Qf6 {[%emt 0:00:29]} Nd4 {[%emt 0:00:10]} 36. h3 {[%emt 0:01:19]} a5 {[%emt 0:01:20]} 37. g4 {[%emt 0:03:37]} Rd7 {[%emt 0:00:58]} 38. Kg2 {[%emt 0:00:38]} Rd5 {[%emt 0:00:48]} 39. Kg3 {[%emt 0:01:50]} Rd7 {[%emt 0:01:44]} 40. h4 {[%emt 0:02:21]} Ne2+ {[%emt 0:01:05]} 41. Kg2 {[%emt 0:02:49]} Nd4 {[%emt 0:00:04]} 42. Kh2 {[%emt 0:00:47]} Rd5 {[%emt 0:00:37]} 43. Kh1 {[%emt 0:05:50]} Rd7 {[%emt 0:00:50]} 44. Kg2 {[%emt 0:00:40]} Rf7 {[%emt 0:01:12]} 45. Qd8+ {[%emt 0:00:25]} Kg7 {[%emt 0:01:06]} 46. Qxa5 {[%emt 0:00:12]} Nxc2 {[%emt 0:00:07]} 47. Qxc5 {[%emt 0:01:48]} Ne1+ {[%emt 0:00:03]} 48. Kh2 {[%emt 0:00:39]} Nxd3 {[%emt 0:00:50]} 49. Qd6 {[%emt 0:00:20]} Ne1 {[%emt 0:01:47]} 50. Qxe6 {[%emt 0:01:14]} Nf3+ {[%emt 0:00:02]} 51. Kg3 {[%emt 0:00:38]} Nd4 {[%emt 0:00:02]} 52. Qc4 {[%emt 0:01:12]} Rf3+ {[%emt 0:00:22]} 53. Kg2 {[%emt 0:01:09]} Nxb3 {[%emt 0:00:10]} 54. e6 {[%emt 0:01:07]} Nd2 {[%emt 0:01:46]} 1-0

[Event "29. Klatovy A 2023"]
[Site "Klatovy"]
[Date "2023.07.01"]
[Round "1.11"]
[White "Kishore, Kumar Jaganathan"]
[Black "Flajsman, Pavel"]
[Result "1/2-1/2"]
[ECO "E04"]
[WhiteElo "1860"]
[BlackElo "2192"]
[PlyCount "117"]
[EventDate "2023.07.01"]
[EventType "swiss"]
[EventRounds "9"]
[EventCountry "CZE"]
[TimeControl "120+30"]

1. d4 {[%emt 0:00:12]} Nf6 {[%emt 0:00:09]} 2. c4 {[%emt 0:00:14]} e6 {[%emt 0:00:05]} 3. g3 {[%emt 0:00:18]} d5 {[%emt 0:00:16]} 4. Nf3 {[%emt 0:00:14]} dxc4 {[%emt 0:03:52]} 5. Bg2 {[%emt 0:00:12]} Bb4+ {[%emt 0:00:07]} 6. Bd2 {[%emt 0:00:31]} a5 {[%emt 0:00:07]} 7. Qc2 {[%emt 0:03:30]} Bxd2+ {[%emt 0:00:34]} 8. Qxd2 {[%emt 0:01:45]} c6 {[%emt 0:12:34]} 9. a4 {[%emt 0:03:07]} b5 {[%emt 0:05:07]} 10. axb5 {[%emt 0:00:41]} cxb5 {[%emt 0:00:03]} 11. Qg5 {[%emt 0:00:16]} O-O {[%emt 0:00:06]} 12. Qxb5 {[%emt 0:00:26]} Ba6 {[%emt 0:00:24]} 13. Qxa5 {[%emt 0:01:20]} Bb7 {[%emt 0:00:43]} 14. Qxd8 {[%emt 0:00:20]} Rxa1 {[%emt 0:06:20]} 15. Qxf8+ {[%emt 0:01:38]} Kxf8 {[%emt 0:00:02]} 16. O-O {[%emt 0:00:19]} Ra2 {[%emt 0:12:28]} 17. Rc1 {[%emt 0:07:24]} Rxb2 {[%emt 0:03:52]} 18. Na3 {[%emt 0:02:49]} Bd5 {[%emt 0:56:47]} 19. Nxc4 {[%emt 0:29:21]} Rxe2 {[%emt 0:01:10]} 20. Ncd2 {[%emt 0:01:04]} Bxf3 {[%emt 0:06:00]} 21. Nxf3 {[%emt 0:00:41]} Nbd7 {[%emt 0:00:23]} 22. Ne5 {[%emt 0:10:25]} Nxe5 {[%emt 0:02:35]} 23. Rc8+ {[%emt 0:01:36]} Ke7 {[%emt 0:00:04]} 24. Kf1 {[%emt 0:00:13]} Rd2 {[%emt 0:06:33]} 25. dxe5 {[%emt 0:01:02]} Ng4 {[%emt 0:00:53]} 26. Rc7+ {[%emt 0:00:52]} Rd7 {[%emt 0:00:26]} 27. Rxd7+ {[%emt 0:05:07]} Kxd7 {[%emt 0:00:12]} 28. f4 {[%emt 0:00:16]} Nxh2+ {[%emt 0:00:45]} 29. Ke2 {[%emt 0:00:07]} Ng4 {[%emt 0:00:38]} 30. Bf3 {[%emt 0:01:15]} Nh6 {[%emt 0:01:05]} 31. g4 {[%emt 0:05:14]} Kc7 {[%emt 0:06:50]} 32. Kd3 {[%emt 0:05:19]} Kb6 {[%emt 0:00:15]} 33. Kd4 {[%emt 0:07:59]} f5 {[%emt 0:03:29]} 34. g5 {[%emt 0:12:44]} Nf7 {[%emt 0:00:01]} 35. Bh5 {[%emt 0:06:15]} g6 {[%emt 0:00:54]} 36. Bd1 {[%emt 0:01:27]} Kc7 {[%emt 0:00:34]} 37. Ba4 {[%emt 0:00:33]} Kd8 {[%emt 0:00:10]} 38. Bc6 {[%emt 0:02:13]} h6 {[%emt 0:00:28]} 39. gxh6 {[%emt 0:00:52]} Nxh6 {[%emt 0:00:01]} 40. Bf3 {[%emt 0:00:37]} Kc7 {[%emt 0:00:17]} 41. Be2 {[%emt 0:00:41]} Nf7 {[%emt 0:00:30]} 42. Bd1 {[%emt 0:02:36]} Kd7 {[%emt 0:00:10]} 43. Be2 {[%emt 0:00:58]} Nd8 {[%emt 0:00:33]} 44. Bb5+ {[%emt 0:01:22]} Ke7 {[%emt 0:00:04]} 45. Kc5 {[%emt 0:00:28]} Nf7 {[%emt 0:00:25]} 46. Kd4 {[%emt 0:00:26]} Nh6 {[%emt 0:03:44]} 47. Be2 {[%emt 0:00:10]} Nf7 {[%emt 0:00:49]} 48. Bb5 {[%emt 0:00:07]} g5 {[%emt 0:00:23]} 49. fxg5 {[%emt 0:00:09]} Nxg5 {[%emt 0:00:01]} 50. Ke3 {[%emt 0:00:40]} Nf7 {[%emt 0:00:49]} 51. Kf4 {[%emt 0:00:09]} Nh8 {[%emt 0:00:39]} 52. Kg5 {[%emt 0:01:47]} Nf7+ {[%emt 0:00:03]} 53. Kf4 {[%emt 0:00:06]} Nh6 {[%emt 0:00:39]} 54. Bd3 {[%emt 0:00:32]} Kf7 {[%emt 0:00:22]} 55. Kg5 {[%emt 0:00:34]} Kg7 {[%emt 0:00:35]} 56. Bc4 {[%emt 0:00:16]} Nf7+ {[%emt 0:00:14]} 57. Kf4 {[%emt 0:00:05]} Nd8 {[%emt 0:00:12]} 58. Bxe6 {[%emt 0:00:10]} Nxe6+ {[%emt 0:00:02]} 59. Kxf5 {[%emt 0:00:09]} 1/2-1/2

[Event "29. Klatovy A 2023"]
[Site "Klatovy"]
[Date "2023.07.01"]
[Round "1.12"]
[White "Janous, Marek"]
[Black "Matejovsky, Ondrej"]
[Result "1-0"]
[ECO "C42"]
[WhiteElo "2185"]
[BlackElo "1928"]
[PlyCount "61"]
[EventDate "2023.07.01"]
[EventType "swiss"]
[EventRounds "9"]
[EventCountry "CZE"]
[TimeControl "120+30"]

1. e4 {[%emt 0:00:28]} e5 {[%emt 0:00:17]} 2. Nf3 {[%emt 0:00:10]} Nf6 {[%emt 0:00:10]} 3. Nc3 {[%emt 0:00:10]} Bb4 {[%emt 0:00:34]} 4. Nxe5 {[%emt 0:15:05]} O-O {[%emt 0:02:35]} 5. Be2 {[%emt 0:02:58]} Re8 {[%emt 0:06:40]} 6. Nf3 {[%emt 0:00:40]} Nxe4 {[%emt 0:02:20]} 7. Nxe4 {[%emt 0:00:17]} Rxe4 {[%emt 0:00:10]} 8. O-O {[%emt 0:00:07]} d5 {[%emt 0:03:51]} 9. c3 {[%emt 0:04:07]} Bd6 {[%emt 0:03:32]} 10. d4 {[%emt 0:05:10]} Bg4 {[%emt 0:10:52]} 11. Bg5 {[%emt 0:09:19]} Be7 {[%emt 0:10:54]} 12. Be3 {[%emt 0:00:50]} Nd7 {[%emt 0:10:15]} 13. Re1 {[%emt 0:08:24]} Bd6 {[%emt 0:10:31]} 14. Qc2 {[%emt 0:32:26]} h6 {[%emt 0:09:20]} 15. Nd2 {[%emt 0:03:00]} Rxe3 {[%emt 0:09:39]} 16. fxe3 {[%emt 0:00:32]} Qh4 {[%emt 0:01:57]} 17. Nf1 {[%emt 0:01:43]} Nf6 {[%emt 0:01:08]} 18. Bxg4 {[%emt 0:00:49]} Qxg4 {[%emt 0:02:50]} 19. c4 {[%emt 0:09:22]} c6 {[%emt 0:03:51]} 20. Qe2 {[%emt 0:06:03]} Qg6 {[%emt 0:07:16]} 21. cxd5 {[%emt 0:08:59]} cxd5 {[%emt 0:03:03]} 22. Rac1 {[%emt 0:00:47]} Re8 {[%emt 0:01:04]} 23. Nd2 {[%emt 0:12:15]} Bxh2+ {[%emt 0:07:57]} 24. Kxh2 {[%emt 0:00:18]} Ng4+ {[%emt 0:00:11]} 25. Kg1 {[%emt 0:00:37]} Qh5 {[%emt 0:01:28]} 26. Nf3 {[%emt 0:01:17]} Rxe3 {[%emt 0:00:41]} 27. Rc8+ {[%emt 0:00:08]} Kh7 {[%emt 0:00:10]} 28. Qc2+ {[%emt 0:00:03]} f5 {[%emt 0:02:07]} 29. Rxe3 {[%emt 0:01:13]} Nxe3 {[%emt 0:00:09]} 30. Qe2 {[%emt 0:02:43]} f4 {[%emt 0:01:07]} 31. Qd3+ {[%emt 0:00:06]} 1-0

[Event "29. Klatovy A 2023"]
[Site "Klatovy"]
[Date "2023.07.01"]
[Round "1.13"]
[White "Pick, Stepan"]
[Black "Dvorak, Jan"]
[Result "0-1"]
[ECO "E08"]
[WhiteElo "1911"]
[BlackElo "2176"]
[PlyCount "42"]
[EventDate "2023.07.01"]
[EventType "swiss"]
[EventRounds "9"]
[EventCountry "CZE"]
[TimeControl "120+30"]

1. Nf3 {[%emt 0:00:03]} e6 {[%emt 0:00:24]} 2. c4 {[%emt 0:00:27]} d5 {[%emt 0:00:13]} 3. g3 {[%emt 0:00:11]} Nf6 {[%emt 0:00:28]} 4. Bg2 {[%emt 0:00:09]} Be7 {[%emt 0:00:27]} 5. O-O {[%emt 0:00:26]} O-O {[%emt 0:00:51]} 6. d4 {[%emt 0:00:30]} Nbd7 {[%emt 0:01:26]} 7. Qc2 {[%emt 0:00:57]} b6 {[%emt 0:01:37]} 8. cxd5 {[%emt 0:03:36]} exd5 {[%emt 0:03:19]} 9. Ne5 {[%emt 0:02:18]} Nxe5 {[%emt 0:07:39]} 10. dxe5 {[%emt 0:00:06]} Ng4 {[%emt 0:03:36]} 11. Nc3 {[%emt 0:17:50]} c6 {[%emt 0:05:24]} 12. Rd1 {[%emt 0:26:53]} Bc5 {[%emt 0:24:38]} 13. Ne4 {[%emt 0:12:26]} Bf5 {[%emt 0:00:49]} 14. Nf6+ {[%emt 0:19:54]} Qxf6 {[%emt 0:03:58]} 15. Qxc5 {[%emt 0:00:20]} Nxe5 {[%emt 0:01:45]} 16. Qc3 {[%emt 0:03:46]} Rfe8 {[%emt 0:07:12]} 17. b4 {[%emt 0:06:10]} Bg4 {[%emt 0:05:22]} 18. Qb2 {[%emt 0:16:04]} Rad8 {[%emt 0:06:40]} 19. b5 {[%emt 0:04:23]} d4 {[%emt 0:12:23]} 20. bxc6 {[%emt 0:02:26]} d3 {[%emt 0:07:32]} 21. f3 {[%emt 0:03:45]} dxe2 {[%emt 0:03:38]} 0-1

[Event "29. Klatovy A 2023"]
[Site "Klatovy"]
[Date "2023.07.01"]
[Round "1.14"]
[White "Soural, Jan"]
[Black "Vana, Jan 2010"]
[Result "1-0"]
[ECO "E05"]
[WhiteElo "2176"]
[BlackElo "1890"]
[PlyCount "75"]
[EventDate "2023.07.01"]
[EventType "swiss"]
[EventRounds "9"]
[EventCountry "CZE"]
[TimeControl "120+30"]

1. c4 {[%emt 0:05:01]} Nf6 {[%emt 0:00:10]} 2. Nf3 {[%emt 0:01:17]} e6 {[%emt 0:00:37]} 3. g3 {[%emt 0:02:02]} d5 {[%emt 0:00:23]} 4. Bg2 {[%emt 0:00:11]} Be7 {[%emt 0:00:13]} 5. O-O {[%emt 0:00:08]} O-O {[%emt 0:00:50]} 6. d4 {[%emt 0:02:56]} dxc4 {[%emt 0:04:06]} 7. Na3 {[%emt 0:03:31]} c5 {[%emt 0:08:41]} 8. Nxc4 {[%emt 0:07:28]} Nc6 {[%emt 0:05:01]} 9. dxc5 {[%emt 0:01:07]} Bxc5 {[%emt 0:01:49]} 10. Nfe5 {[%emt 0:05:49]} Nxe5 {[%emt 0:15:15]} 11. Nxe5 {[%emt 0:00:21]} Qc7 {[%emt 0:02:52]} 12. Bf4 {[%emt 0:09:21]} Nh5 {[%emt 0:04:53]} 13. Rc1 {[%emt 0:03:30]} Nxf4 {[%emt 0:05:24]} 14. gxf4 {[%emt 0:01:00]} Qe7 {[%emt 0:06:08]} 15. Qc2 {[%emt 0:02:21]} Bb6 {[%emt 0:09:55]} 16. Rfd1 {[%emt 0:01:23]} f6 {[%emt 0:09:14]} 17. Nc4 {[%emt 0:05:54]} e5 {[%emt 0:09:40]} 18. Nxb6 {[%emt 0:11:10]} axb6 {[%emt 0:00:19]} 19. Qc7 {[%emt 0:00:07]} Qxc7 {[%emt 0:10:23]} 20. Rxc7 {[%emt 0:00:03]} exf4 {[%emt 0:02:37]} 21. Rd6 {[%emt 0:15:34]} Bg4 {[%emt 0:15:13]} 22. Bd5+ {[%emt 0:02:49]} Kh8 {[%emt 0:00:08]} 23. f3 {[%emt 0:00:10]} Bh3 {[%emt 0:01:43]} 24. Kf2 {[%emt 0:17:55]} Rad8 {[%emt 0:09:52]} 25. Rxd8 {[%emt 0:00:21]} Rxd8 {[%emt 0:00:01]} 26. Rxb7 {[%emt 0:00:09]} h5 {[%emt 0:02:13]} 27. Be4 {[%emt 0:16:24]} f5 {[%emt 0:03:22]} 28. Bd3 {[%emt 0:00:49]} Rd6 {[%emt 0:00:19]} 29. a4 {[%emt 0:02:58]} g5 {[%emt 0:03:03]} 30. b4 {[%emt 0:07:15]} g4 {[%emt 0:00:18]} 31. a5 {[%emt 0:04:10]} bxa5 {[%emt 0:00:20]} 32. bxa5 {[%emt 0:00:04]} Rg6 {[%emt 0:00:10]} 33. Rb6 {[%emt 0:01:56]} Rg7 {[%emt 0:01:17]} 34. Rh6+ {[%emt 0:00:34]} Kg8 {[%emt 0:00:04]} 35. Rxh5 {[%emt 0:00:54]} Ra7 {[%emt 0:00:56]} 36. Bxf5 {[%emt 0:01:06]} g3+ {[%emt 0:00:31]} 37. hxg3 {[%emt 0:00:07]} fxg3+ {[%emt 0:00:29]} 38. Kxg3 {[%emt 0:00:18]} 1-0

[Event "29. Klatovy A 2023"]
[Site "Klatovy"]
[Date "2023.07.01"]
[Round "1.15"]
[White "Kovar, Petr"]
[Black "Skypala, Ondrej"]
[Result "0-1"]
[ECO "A17"]
[WhiteElo "1879"]
[BlackElo "2163"]
[PlyCount "91"]
[EventDate "2023.07.01"]
[EventType "swiss"]
[EventRounds "9"]
[EventCountry "CZE"]
[TimeControl "120+30"]

1. c4 {[%emt 0:00:05]} Nf6 {[%emt 0:00:08]} 2. Nc3 {[%emt 0:00:25]} e6 {[%emt 0:00:46]} 3. Nf3 {[%emt 0:00:48]} Bb4 {[%emt 0:00:08]} 4. g3 {[%emt 0:02:18]} O-O {[%emt 0:00:08]} 5. Bg2 {[%emt 0:00:04]} c5 {[%emt 0:00:20]} 6. O-O {[%emt 0:01:33]} d6 {[%emt 0:00:06]} 7. Qc2 {[%emt 0:03:47]} Nc6 {[%emt 0:00:10]} 8. e3 {[%emt 0:08:05]} Qe7 {[%emt 0:06:27]} 9. b3 {[%emt 0:00:42]} Bxc3 {[%emt 0:02:21]} 10. Qxc3 {[%emt 0:02:06]} e5 {[%emt 0:00:05]} 11. d3 {[%emt 0:10:21]} Bg4 {[%emt 0:07:49]} 12. Bb2 {[%emt 0:03:42]} Qd7 {[%emt 0:03:04]} 13. Rfe1 {[%emt 0:06:27]} h5 {[%emt 0:04:38]} 14. a3 {[%emt 0:15:23]} a5 {[%emt 0:00:34]} 15. Qd2 {[%emt 0:12:09]} g6 {[%emt 0:14:35]} 16. Ng5 {[%emt 0:11:57]} Nh7 {[%emt 0:02:32]} 17. Nxh7 {[%emt 0:03:53]} Kxh7 {[%emt 0:00:05]} 18. d4 {[%emt 0:04:55]} f6 {[%emt 0:01:52]} 19. dxc5 {[%emt 0:01:07]} dxc5 {[%emt 0:01:24]} 20. Qxd7+ {[%emt 0:05:51]} Bxd7 {[%emt 0:00:08]} 21. Bd5 {[%emt 0:06:39]} a4 {[%emt 0:02:26]} 22. b4 {[%emt 0:07:36]} cxb4 {[%emt 0:00:18]} 23. axb4 {[%emt 0:00:43]} Nxb4 {[%emt 0:23:02]} 24. Bxb7 {[%emt 0:03:00]} Rab8 {[%emt 0:00:21]} 25. Be4 {[%emt 0:02:06]} f5 {[%emt 0:02:37]} 26. Bxe5 {[%emt 0:01:21]} fxe4 {[%emt 0:00:11]} 27. Bxb8 {[%emt 0:02:26]} Rxb8 {[%emt 0:00:33]} 28. Red1 {[%emt 0:00:59]} Nd3 {[%emt 0:02:25]} 29. f3 {[%emt 0:01:00]} Ne5 {[%emt 0:03:40]} 30. fxe4 {[%emt 0:01:21]} Rb2 {[%emt 0:05:43]} 31. Rxd7+ {[%emt 0:08:15]} Nxd7 {[%emt 0:00:11]} 32. Rxa4 {[%emt 0:00:06]} Ne5 {[%emt 0:00:24]} 33. c5 {[%emt 0:02:46]} Rc2 {[%emt 0:01:16]} 34. Ra5 {[%emt 0:01:33]} Nf3+ {[%emt 0:01:10]} 35. Kf1 {[%emt 0:00:13]} Nxh2+ {[%emt 0:00:08]} 36. Ke1 {[%emt 0:00:12]} Nf3+ {[%emt 0:00:21]} 37. Kd1 {[%emt 0:00:12]} Rc4 {[%emt 0:00:17]} 38. Ke2 {[%emt 0:00:48]} Ne5 {[%emt 0:00:07]} 39. Kd2 {[%emt 0:01:31]} Rxe4 {[%emt 0:01:09]} 40. Ra7+ {[%emt 0:01:27]} Kh6 {[%emt 0:00:07]} 41. Re7 {[%emt 0:00:38]} Nf3+ {[%emt 0:00:12]} 42. Ke2 {[%emt 0:00:29]} Ng1+ {[%emt 0:00:06]} 43. Kd3 {[%emt 0:00:32]} Rxe7 {[%emt 0:00:07]} 44. Kd4 {[%emt 0:00:11]} Ne2+ {[%emt 0:00:08]} 45. Kd5 {[%emt 0:00:17]} Nxg3 {[%emt 0:00:08]} 46. Kd4 {[%emt 0:00:14]} 0-1

[Event "29. Klatovy A 2023"]
[Site "Klatovy"]
[Date "2023.07.01"]
[Round "1.16"]
[White "Kupsa, Matej 2001"]
[Black "Hosnedl, Jiri"]
[Result "1/2-1/2"]
[ECO "D03"]
[WhiteElo "2145"]
[BlackElo "1858"]
[PlyCount "38"]
[EventDate "2023.07.01"]
[EventType "swiss"]
[EventRounds "9"]
[EventCountry "CZE"]
[TimeControl "120+30"]

1. d4 {[%emt 0:00:04]} d5 {[%emt 0:00:14]} 2. Nf3 {[%emt 0:00:05]} Nf6 {[%emt 0:00:54]} 3. Bg5 {[%emt 0:00:39]} e6 {[%emt 0:02:59]} 4. e3 {[%emt 0:17:43]} Be7 {[%emt 0:01:59]} 5. Nbd2 {[%emt 0:01:58]} Nbd7 {[%emt 0:03:53]} 6. Bd3 {[%emt 0:04:20]} b6 {[%emt 0:07:24]} 7. O-O {[%emt 0:01:06]} Bb7 {[%emt 0:00:46]} 8. Qe2 {[%emt 0:04:11]} Ne4 {[%emt 0:07:18]} 9. Bxe7 {[%emt 0:08:09]} Qxe7 {[%emt 0:00:25]} 10. c4 {[%emt 0:01:01]} Nxd2 {[%emt 0:10:39]} 11. Nxd2 {[%emt 0:03:19]} dxc4 {[%emt 0:05:01]} 12. Nxc4 {[%emt 0:02:48]} c5 {[%emt 0:03:22]} 13. Rac1 {[%emt 0:13:15]} O-O {[%emt 0:07:07]} 14. Rfd1 {[%emt 0:11:45]} Rfd8 {[%emt 0:13:22]} 15. a4 {[%emt 0:07:54]} cxd4 {[%emt 0:16:30]} 16. exd4 {[%emt 0:00:07]} Nf6 {[%emt 0:02:27]} 17. a5 {[%emt 0:05:08]} Nd5 {[%emt 0:08:11]} 18. Qe5 {[%emt 0:16:50]} Rac8 {[%emt 0:08:27]} 19. Ne3 {[%emt 0:05:55]} bxa5 {[%emt 0:08:12]} 1/2-1/2

[Event "29. Klatovy A 2023"]
[Site "Klatovy"]
[Date "2023.07.01"]
[Round "1.17"]
[White "Ruessel, Bernhard"]
[Black "Jordanov, Mihail"]
[Result "0-1"]
[ECO "D11"]
[WhiteElo "1852"]
[BlackElo "2140"]
[PlyCount "50"]
[EventDate "2023.07.01"]
[EventType "swiss"]
[EventRounds "9"]
[EventCountry "CZE"]
[TimeControl "120+30"]

1. d4 {[%emt 0:00:09]} d5 {[%emt 0:00:29]} 2. Nf3 {[%emt 0:00:18]} Nf6 {[%emt 0:00:16]} 3. c4 {[%emt 0:00:57]} c6 {[%emt 0:00:21]} 4. g3 {[%emt 0:01:31]} Bf5 {[%emt 0:01:23]} 5. Nbd2 {[%emt 0:03:59]} e6 {[%emt 0:06:31]} 6. Bg2 {[%emt 0:01:25]} h6 {[%emt 0:02:28]} 7. O-O {[%emt 0:00:58]} Be7 {[%emt 0:00:22]} 8. b3 {[%emt 0:09:13]} O-O {[%emt 0:04:33]} 9. Ne5 {[%emt 0:03:54]} Nbd7 {[%emt 0:14:42]} 10. Ndf3 {[%emt 0:03:00]} Ne4 {[%emt 0:01:47]} 11. Bf4 {[%emt 0:06:23]} Nxe5 {[%emt 0:10:31]} 12. Bxe5 {[%emt 0:02:25]} g5 {[%emt 0:07:18]} 13. h3 {[%emt 0:00:58]} h5 {[%emt 0:06:26]} 14. g4 {[%emt 0:06:28]} hxg4 {[%emt 0:01:44]} 15. hxg4 {[%emt 0:00:20]} Bxg4 {[%emt 0:01:50]} 16. Ne1 {[%emt 0:02:12]} Nc3 {[%emt 0:16:53]} 17. Qd2 {[%emt 0:00:47]} Nxe2+ {[%emt 0:02:14]} 18. Kh1 {[%emt 0:00:33]} f6 {[%emt 0:01:25]} 19. Bh2 {[%emt 0:00:48]} Kf7 {[%emt 0:10:24]} 20. f3 {[%emt 0:01:40]} Rh8 {[%emt 0:00:35]} 21. Qxe2 {[%emt 0:14:07]} Qc7 {[%emt 0:01:07]} 22. Kg1 {[%emt 0:01:53]} Qxh2+ {[%emt 0:00:37]} 23. Kf2 {[%emt 0:00:25]} Bd6 {[%emt 0:00:38]} 24. Ke3 {[%emt 0:05:41]} Bf5 {[%emt 0:03:09]} 25. Qf2 {[%emt 0:17:06]} e5 {[%emt 0:04:36]} 0-1

[Event "29. Klatovy A 2023"]
[Site "Klatovy"]
[Date "2023.07.02"]
[Round "2.1"]
[White "Hurdzan, Tomas"]
[Black "Ret, Adam Josef"]
[Result "1-0"]
[ECO "A14"]
[WhiteElo "2309"]
[BlackElo "2133"]
[PlyCount "115"]
[EventDate "2023.07.01"]
[EventType "swiss"]
[EventRounds "9"]
[EventCountry "CZE"]
[TimeControl "120+30"]

1. c4 {[%emt 0:00:17]} e6 {[%emt 0:00:25]} 2. Nf3 {[%emt 0:00:23]} d5 {[%emt 0:00:19]} 3. g3 {[%emt 0:00:56]} Nf6 {[%emt 0:07:50]} 4. Bg2 {[%emt 0:00:27]} Be7 {[%emt 0:03:07]} 5. O-O {[%emt 0:00:14]} O-O {[%emt 0:00:34]} 6. b3 {[%emt 0:01:50]} c5 {[%emt 0:07:00]} 7. cxd5 {[%emt 0:02:05]} Nxd5 {[%emt 0:06:27]} 8. Bb2 {[%emt 0:01:31]} Nc6 {[%emt 0:00:32]} 9. d4 {[%emt 0:04:43]} cxd4 {[%emt 0:07:55]} 10. Nxd4 {[%emt 0:00:35]} Nxd4 {[%emt 0:02:13]} 11. Qxd4 {[%emt 0:07:16]} Bf6 {[%emt 0:01:14]} 12. Qd2 {[%emt 0:00:09]} Bd7 {[%emt 0:08:10]} 13. Rd1 {[%emt 0:46:45]} Bc6 {[%emt 0:06:03]} 14. Na3 {[%emt 0:04:36]} Qe7 {[%emt 0:09:32]} 15. Nc4 {[%emt 0:01:00]} Bxb2 {[%emt 0:07:14]} 16. Qxb2 {[%emt 0:00:25]} Nb6 {[%emt 0:01:44]} 17. Bxc6 {[%emt 0:16:09]} Nxc4 {[%emt 0:00:50]} 18. Qc3 {[%emt 0:02:23]} Nb6 {[%emt 0:03:00]} 19. Bf3 {[%emt 0:03:58]} Rfc8 {[%emt 0:16:44]} 20. Qa5 {[%emt 0:09:07]} Rc5 {[%emt 0:01:09]} 21. Qa3 {[%emt 0:00:56]} Rc7 {[%emt 0:01:02]} 22. Qxe7 {[%emt 0:00:25]} Rxe7 {[%emt 0:00:02]} 23. Rac1 {[%emt 0:00:55]} g6 {[%emt 0:00:35]} 24. a4 {[%emt 0:02:59]} Rae8 {[%emt 0:18:29]} 25. e3 {[%emt 0:05:15]} a6 {[%emt 0:03:48]} 26. Rc5 {[%emt 0:01:32]} Nd7 {[%emt 0:00:46]} 27. Rc3 {[%emt 0:02:54]} Ne5 {[%emt 0:01:09]} 28. Bg2 {[%emt 0:00:48]} Kg7 {[%emt 0:03:02]} 29. Rd6 {[%emt 0:00:29]} Rb8 {[%emt 0:02:19]} 30. b4 {[%emt 0:05:44]} f6 {[%emt 0:02:42]} 31. Rb6 {[%emt 0:01:27]} Kf7 {[%emt 0:03:18]} 32. f4 {[%emt 0:00:37]} Ng4 {[%emt 0:00:42]} 33. h3 {[%emt 0:00:20]} Nh6 {[%emt 0:00:09]} 34. g4 {[%emt 0:00:34]} Rd7 {[%emt 0:02:06]} 35. Kf2 {[%emt 0:00:32]} Ng8 {[%emt 0:00:06]} 36. Bc6 {[%emt 0:01:58]} Re7 {[%emt 0:01:03]} 37. Rd3 {[%emt 0:03:35]} Rc8 {[%emt 0:00:00]} 38. Bf3 {[%emt 0:00:26]} Rb8 {[%emt 0:02:33]} 39. Rdd6 {[%emt 0:00:32]} f5 {[%emt 0:03:06]} 40. g5 {[%emt 0:00:02]} e5 {[%emt 0:00:24]} 41. Bd5+ {[%emt 0:00:37]} Kg7 {[%emt 0:00:03]} 42. fxe5 {[%emt 0:00:48]} Rc7 {[%emt 0:00:31]} 43. Bf3 {[%emt 0:02:18]} Ne7 {[%emt 0:00:04]} 44. Rf6 {[%emt 0:00:20]} Ng8 {[%emt 0:01:30]} 45. Rfe6 {[%emt 0:00:58]} Ne7 {[%emt 0:00:41]} 46. Rbd6 {[%emt 0:00:18]} Re8 {[%emt 0:00:27]} 47. a5 {[%emt 0:00:45]} Rc2+ {[%emt 0:00:20]} 48. Kg3 {[%emt 0:00:09]} Rc7 {[%emt 0:00:36]} 49. h4 {[%emt 0:00:27]} Rf8 {[%emt 0:00:12]} 50. Rf6 {[%emt 0:00:19]} Rb8 {[%emt 0:01:05]} 51. e6 {[%emt 0:00:31]} Nc6 {[%emt 0:00:43]} 52. Bxc6 {[%emt 0:01:04]} Rxc6 {[%emt 0:00:32]} 53. Rf7+ {[%emt 0:00:31]} Kg8 {[%emt 0:00:04]} 54. Rxb7 {[%emt 0:00:44]} Rxd6 {[%emt 0:00:37]} 55. Rxb8+ {[%emt 0:00:04]} Kg7 {[%emt 0:00:06]} 56. Rb7+ {[%emt 0:00:10]} Kg8 {[%emt 0:00:15]} 57. Rb8+ {[%emt 0:00:31]} Kg7 {[%emt 0:00:04]} 58. e7 {[%emt 0:00:04]} 1-0